bitfinex-derivatives/quotes_SOLF0:USTF0_20260311
["timestamp","ask_amount","ask_price","bid_price","bid_amount"]
[1773195977055,9.37177697,85.946,85.912,3.92494154]
[1773195977261,9.37177697,85.945,85.912,3.92494154]
[1773195977462,9.37177697,85.944,85.912,3.92494154]
[1773195977663,9.37177697,85.943,85.912,3.92494154]
[1773195977860,9.37177697,85.942,85.912,3.92494154]
[1773195978059,9.37177697,85.941,85.912,3.92494154]
[1773195978260,9.37177697,85.94,85.912,3.92494154]
[1773195978557,9.37177697,85.939,85.912,3.92494154]
[1773195978758,9.37177697,85.938,85.912,3.92494154]
[1773195978958,3.88120712,85.948,85.912,3.92494154]
[1773195979162,9.37218973,85.947,85.912,3.92494154]
[1773195979362,9.37218973,85.946,85.912,3.92494154]
[1773195979562,9.37218973,85.945,85.912,3.92494154]
[1773195979764,9.37218973,85.944,85.912,3.92494154]
[1773195980065,9.37218973,85.943,85.912,3.92494154]
[1773195980264,9.37218973,85.942,85.912,3.92494154]
[1773195980565,9.37218973,85.941,85.912,3.92494154]
[1773195980865,9.37218973,85.94,85.912,3.92494154]
[1773195981064,9.37218973,85.939,85.912,3.92494154]
[1773195981265,9.37218973,85.938,85.912,3.92494154]
[1773195981461,3.88120712,85.948,85.912,3.92494154]
[1773195981666,3.46419791,85.97,85.921,3.95596768]
[1773195981667,9.37214507,85.947,85.921,3.95596768]
[1773195981866,9.37214507,85.946,85.921,3.95596768]
[1773195982165,9.37214507,85.945,85.921,3.95596768]
[1773195982367,9.37214507,85.944,85.921,3.95596768]
[1773195982566,9.37214507,85.943,85.921,3.95596768]
[1773195982766,9.37214507,85.942,85.921,3.95596768]
[1773195982964,3.78933409,85.951,85.921,3.95596768]
[1773195983164,9.37200547,85.95,85.921,3.95596768]
[1773195983365,9.37200547,85.949,85.921,3.95596768]
[1773195983565,9.37200547,85.948,85.921,3.95596768]
[1773195983764,9.37200547,85.947,85.921,3.95596768]
[1773195983964,9.37200547,85.946,85.921,3.95596768]
[1773195984265,9.37200547,85.945,85.921,3.95596768]
[1773195984466,9.37200547,85.944,85.921,3.95596768]
[1773195984764,3.78933409,85.951,85.921,3.95596768]
[1773195984966,9.37176597,85.95,85.921,3.95596768]
[1773195985268,3.78933409,85.929,85.88,3.46419791]
[1773195985468,3.78933409,85.927,85.88,3.95596768]
[1773195985762,3.78933409,85.925,85.881,3.95596768]
[1773195985963,9.37176597,85.924,85.881,3.95596768]
[1773195986162,9.37176597,85.923,85.881,3.95596768]
[1773195986363,9.37176597,85.922,85.881,3.95596768]
[1773195986567,9.37176597,85.921,85.881,3.95596768]
[1773195986868,9.37176597,85.92,85.881,3.95596768]
[1773195987168,9.37176597,85.919,85.881,3.95596768]
[1773195987468,9.37176597,85.918,85.881,3.95596768]
[1773195987766,9.37176597,85.917,85.881,3.95596768]
[1773195988066,3.78933409,85.925,85.881,3.95596768]
[1773195988266,9.36626613,85.924,85.881,3.95596768]
[1773195988466,9.36626613,85.923,85.881,3.95596768]
[1773195988663,9.36626613,85.922,85.881,3.95596768]
[1773195988865,9.36626613,85.921,85.883,3.95596768]
[1773195989163,9.36626613,85.92,85.89,3.46419791]
[1773195989368,9.36626613,85.919,85.89,3.46419791]
[1773195989564,3.78933409,85.925,85.89,3.46419791]
[1773195989867,9.36398524,85.924,85.89,3.46419791]
[1773195990067,9.36398524,85.923,85.89,3.46419791]
[1773195990267,9.36398524,85.922,85.89,3.46419791]
[1773195990567,9.36398524,85.921,85.89,3.46419791]
[1773195990760,9.36398524,85.92,85.89,3.46419791]
[1773195991061,3.78933409,85.925,85.89,3.46419791]
[1773195991265,9.36080156,85.924,85.89,3.46419791]
[1773195991466,9.36080156,85.923,85.89,3.46419791]
[1773195991666,9.36080156,85.922,85.89,3.46419791]
[1773195991868,9.36080156,85.921,85.89,3.46419791]
[1773195992068,3.78933409,85.925,85.89,3.46419791]
[1773195992269,9.3597068,85.924,85.89,3.46419791]
[1773195992567,9.3597068,85.923,85.89,3.46419791]
[1773195992767,9.3597068,85.922,85.89,3.46419791]
[1773195993064,9.3597068,85.921,85.89,3.46419791]
[1773195993269,3.78933409,85.925,85.89,3.46419791]
[1773195993570,9.35834909,85.924,85.89,3.46419791]
[1773195993869,9.35834909,85.923,85.891,10.477]
[1773195994064,9.35834909,85.922,85.891,10.477]
[1773195994269,3.78933409,85.925,85.891,10.477]
[1773195994570,9.35725641,85.924,85.891,10.477]
[1773195994771,9.35725641,85.923,85.891,10.477]
[1773195994970,9.35725641,85.922,85.891,10.477]
[1773195995169,3.78933409,85.925,85.891,10.477]
[1773195995370,9.35639017,85.924,85.891,10.477]
[1773195995670,3.78933409,85.925,85.891,10.477]
[1773195997070,3.78933409,85.925,85.89,3.46419791]
[1773195997273,3.78933409,85.925,85.884,3.95596768]
[1773195997569,3.78933409,85.925,85.89,3.46419791]
[1773195998264,3.75274008,85.944,85.901,3.97697647]
[1773195998469,10.471,85.945,85.901,3.97697647]
[1773195998470,3.75274008,85.942,85.901,3.97697647]
[1773195998668,3.75274008,85.94,85.901,3.97697647]
[1773195998870,3.75274008,85.938,85.901,3.97697647]
[1773195999067,3.75274008,85.936,85.901,3.97697647]
[1773196001171,10.471,85.945,85.901,3.97697647]
[1773196001370,3.46419791,85.96,85.91,3.46419791]
[1773196001572,3.75274008,85.958,85.91,3.46419791]
[1773196001771,9.35221513,85.959,85.91,3.46419791]
[1773196001772,3.75274008,85.956,85.91,3.46419791]
[1773196001972,3.75274008,85.954,85.91,3.46419791]
[1773196002171,3.75274008,85.952,85.91,3.46419791]
[1773196002376,3.75274008,85.95,85.91,3.46419791]
[1773196005781,10.84982136,85.995,85.879,193.55053944]
[1773196005782,3.75274008,85.994,85.921,3.97697647]
[1773196005983,3.75274008,85.969,85.921,3.97697647]
[1773196006179,3.46419791,85.98,85.921,3.97697647]
[1773196006180,3.75274008,85.967,85.921,3.97697647]
[1773196006481,3.75274008,85.965,85.921,3.97697647]
[1773196006779,13.10483938,85.964,85.93,3.46419791]
[1773196006976,3.75274008,85.964,85.93,3.46419791]
[1773196009480,3.75274008,85.964,85.922,3.97697647]
[1773196009676,3.75274008,85.964,85.92,3.46419791]
[1773196010284,3.75274008,85.964,85.921,3.78984794]
[1773196011287,3.688419,85.962,85.921,3.78984794]
[1773196012788,3.688419,85.962,85.93,3.46419791]
[1773196013786,3.688419,85.962,85.921,3.78984794]
[1773196015592,9.34682488,85.961,85.921,3.78984794]
[1773196015795,9.34682488,85.96,85.921,3.78984794]
[1773196015996,9.34682488,85.959,85.921,3.78984794]
[1773196016292,9.34682488,85.958,85.921,3.78984794]
[1773196016492,9.34682488,85.957,85.921,3.78984794]
[1773196016794,9.34682488,85.956,85.921,3.78984794]
[1773196016993,9.34682488,85.955,85.921,3.78984794]
[1773196017294,9.34682488,85.954,85.921,3.78984794]
[1773196017590,9.34682488,85.953,85.93,3.46322288]
[1773196017791,3.688419,85.975,85.931,3.78984794]
[1773196017992,3.688419,85.973,85.931,3.78984794]
[1773196018194,3.688419,85.971,85.931,3.78984794]
[1773196018494,3.688419,85.969,85.931,3.78984794]
[1773196018792,3.688419,85.967,85.931,3.78984794]
[1773196018992,9.34577887,85.966,85.931,3.78984794]
[1773196019194,9.34577887,85.965,85.931,3.78984794]
[1773196019392,9.34577887,85.964,85.931,3.78984794]
[1773196019691,9.34577887,85.963,85.931,3.78984794]
[1773196019893,9.34577887,85.962,85.931,3.78984794]
[1773196020094,3.688419,85.967,85.931,3.78984794]
[1773196020297,9.342588,85.966,85.931,3.78984794]
[1773196020495,9.342588,85.965,85.931,3.78984794]
[1773196020697,9.342588,85.964,85.931,3.78984794]
[1773196020896,9.342588,85.963,85.931,3.78984794]
[1773196021098,9.342588,85.962,85.931,3.78984794]
[1773196021399,3.688419,85.967,85.931,3.78984794]
[1773196021596,13.02917509,85.966,85.931,3.78984794]
[1773196021796,9.34075609,85.965,85.931,3.78984794]
[1773196021995,9.34075609,85.964,85.931,3.78984794]
[1773196022199,9.34075609,85.963,85.931,3.78984794]
[1773196022498,3.688419,85.991,85.951,3.78984794]
[1773196022697,9.33785162,85.99,85.96,3.46322288]
[1773196022899,9.33785162,85.989,85.951,3.78984794]
[1773196023098,3.688419,85.985,85.94,3.46322288]
[1773196023300,3.688419,85.983,85.94,3.46322288]
[1773196023500,3.688419,85.981,85.94,3.46322288]
[1773196024498,3.688419,85.979,85.93,3.46322288]
[1773196024704,3.688419,85.977,85.93,3.46322288]
[1773196025402,3.688419,85.976,85.93,3.46322288]
[1773196025902,3.688419,85.976,85.93,7.25307082]
[1773196026101,3.688419,85.976,85.94,3.46322288]
[1773196029804,3.688419,85.976,85.941,3.78984794]
[1773196032006,3.688419,85.976,85.94,3.46322288]
[1773196034006,3.688419,85.973,85.94,3.46322288]
[1773196034208,3.688419,85.973,85.93,7.25307082]
[1773196034704,3.688419,85.973,85.931,3.78984794]
[1773196035605,10.468,85.971,85.931,3.78984794]
[1773196036103,10.468,85.971,85.94,3.46322288]
[1773196037007,3.688419,85.973,85.94,3.46322288]
[1773196037204,3.688419,85.973,85.931,3.78984794]
[1773196037405,3.688419,85.999,85.941,3.78984794]
[1773196037610,3.688419,85.997,85.941,3.78984794]
[1773196037803,3.688419,85.995,85.941,3.78984794]
[1773196038004,3.688419,85.993,85.941,3.78984794]
[1773196038216,3.688419,85.991,85.941,3.78984794]
[1773196038511,3.688419,85.986,85.941,3.78984794]
[1773196038704,3.688419,85.984,85.941,3.78984794]
[1773196038908,3.46322288,85.99,85.941,3.78984794]
[1773196038909,3.688419,85.982,85.941,3.78984794]
[1773196039104,3.688419,85.977,85.941,3.78984794]
[1773196039613,3.71964375,85.975,85.931,4.0472473]
[1773196039913,3.71964375,85.975,85.873,28.78296637]
[1773196039914,3.71964375,85.969,85.923,4.0472473]
[1773196040111,3.71964375,85.967,85.923,4.0472473]
[1773196040301,3.71964375,85.965,85.923,4.0472473]
[1773196041113,3.71964375,85.963,85.923,4.0472473]
[1773196042118,9.34344778,85.962,85.923,4.0472473]
[1773196042409,3.71964375,85.963,85.923,4.0472473]
[1773196042612,9.34344778,85.962,85.923,4.0472473]
[1773196042813,3.71964375,85.963,85.923,4.0472473]
[1773196043014,9.34344905,85.962,85.923,4.0472473]
[1773196043214,9.34344905,85.961,85.923,4.0472473]
[1773196043515,3.71964375,85.963,85.923,4.0472473]
[1773196043718,9.34746084,85.962,85.923,4.0472473]
[1773196044012,9.34746084,85.961,85.923,4.0472473]
[1773196044215,9.34746084,85.96,85.923,4.0472473]
[1773196044419,3.71964375,85.962,85.923,4.0472473]
[1773196044607,9.35012231,85.961,85.923,4.0472473]
[1773196044814,9.35012231,85.96,85.923,4.0472473]
[1773196045013,3.71964375,85.96,85.923,4.0472473]
[1773196045217,3.71964375,85.958,85.92,3.46322288]
[1773196046318,3.71964375,85.956,85.92,3.46322288]
[1773196047311,3.71964375,85.956,85.92,7.51047018]
[1773196048322,3.71964375,85.956,85.922,4.0472473]
[1773196049923,9.36098751,85.955,85.922,4.0472473]
[1773196050222,9.36281082,85.954,85.922,4.0472473]
[1773196050422,3.71964375,85.956,85.922,4.0472473]
[1773196050623,9.36281082,85.955,85.922,4.0472473]
[1773196050823,9.36281082,85.954,85.922,4.0472473]
[1773196051025,3.71964375,85.956,85.922,4.0472473]
[1773196051223,9.36353846,85.955,85.922,4.0472473]
[1773196051426,9.36353846,85.954,85.922,4.0472473]
[1773196051625,3.71964375,85.956,85.922,4.0472473]
[1773196051826,9.3637775,85.955,85.924,4.0472473]
[1773196052027,9.3637775,85.954,85.931,4.0472473]
[1773196052222,3.71964375,85.968,85.931,4.0472473]
[1773196052428,9.36411803,85.967,85.931,4.0472473]
[1773196052626,9.36411803,85.966,85.931,4.0472473]
[1773196052833,9.36411803,85.965,85.931,4.0472473]
[1773196053033,9.36411803,85.964,85.931,4.0472473]
[1773196053234,9.36411803,85.963,85.931,4.0472473]
[1773196053435,9.36411803,85.962,85.931,4.0472473]
[1773196053734,9.36411803,85.961,85.931,4.0472473]
[1773196054035,9.36411803,85.96,85.931,4.0472473]
[1773196054228,9.36411803,85.959,85.931,4.0472473]
[1773196054431,9.36411803,85.958,85.931,4.0472473]
[1773196054632,9.36411803,85.957,85.931,4.0472473]
[1773196054933,9.36411803,85.956,85.931,4.0472473]
[1773196055135,9.36411803,85.955,85.931,4.0472473]
[1773196055435,9.36411803,85.954,85.931,4.0472473]
[1773196055634,3.71964375,85.968,85.931,4.0472473]
[1773196055936,9.36240787,85.967,85.931,4.0472473]
[1773196056137,9.36240787,85.966,85.931,4.0472473]
[1773196056436,9.36240787,85.965,85.931,4.0472473]
[1773196056634,9.36240787,85.964,85.931,4.0472473]
[1773196056835,3.71964375,85.978,85.941,4.0472473]
[1773196057026,9.36263048,85.977,85.941,4.0472473]
[1773196057229,9.36263048,85.976,85.941,4.0472473]
[1773196057431,9.36263048,85.975,85.941,4.0472473]
[1773196057626,9.36263048,85.974,85.941,4.0472473]
[1773196057832,9.36263048,85.973,85.941,4.0472473]
[1773196058032,10.466,85.989,85.895,20.954]
[1773196058033,3.78143792,85.989,85.951,3.66596145]
[1773196058332,9.36136246,85.988,85.951,3.66596145]
[1773196058532,9.36136246,85.987,85.951,3.66596145]
[1773196058732,9.36136246,85.986,85.951,3.66596145]
[1773196058931,9.36136246,85.985,85.951,3.66596145]
[1773196059235,9.36136246,85.984,85.951,3.66596145]
[1773196059534,9.36136246,85.983,85.951,3.66596145]
[1773196059732,9.36136246,85.982,85.951,3.66596145]
[1773196059932,9.36136246,85.981,85.951,3.66596145]
[1773196060125,9.36136246,85.98,85.951,3.66596145]
[1773196060329,3.78143792,85.989,85.951,3.66596145]
[1773196060525,9.35939829,85.988,85.951,3.66596145]
[1773196060727,9.35939829,85.987,85.951,3.66596145]
[1773196060930,9.35939829,85.986,85.951,3.66596145]
[1773196061126,9.35939829,85.985,85.951,3.66596145]
[1773196061335,9.35939829,85.984,85.951,3.66596145]
[1773196061531,9.35939829,85.983,85.951,3.66596145]
[1773196061734,9.35939829,85.982,85.951,3.66596145]
[1773196061934,9.35939829,85.981,85.951,3.66596145]
[1773196062137,9.35939829,85.98,85.951,3.66596145]
[1773196062337,3.78143792,85.989,85.951,3.66596145]
[1773196062528,3.78143792,85.987,85.951,3.66596145]
[1773196062729,9.35909839,85.986,85.951,3.66596145]
[1773196062930,9.35909839,85.985,85.951,3.66596145]
[1773196063137,9.35909839,85.984,85.951,3.66596145]
[1773196063329,9.35909839,85.983,85.951,3.66596145]
[1773196063533,9.35909839,85.982,85.951,3.66596145]
[1773196063728,9.35909839,85.981,85.951,3.66596145]
[1773196064038,9.35909839,85.98,85.951,3.66596145]
[1773196064235,3.78143792,85.987,85.951,3.66596145]
[1773196064440,3.78143792,85.985,85.951,3.66596145]
[1773196064630,13.15656803,85.984,85.951,3.66596145]
[1773196064939,9.37513011,85.983,85.951,3.66596145]
[1773196065239,9.37513011,85.982,85.951,3.66596145]
[1773196065439,9.37513011,85.981,85.951,3.66596145]
[1773196065738,9.37513011,85.98,85.951,3.66596145]
[1773196065939,9.37513011,85.979,85.951,3.66596145]
[1773196066138,9.37513011,85.978,85.951,3.66596145]
[1773196066338,9.37513011,85.977,85.951,3.66596145]
[1773196066637,9.37513011,85.976,85.951,3.66596145]
[1773196066838,9.37513011,85.975,85.951,3.66596145]
[1773196067142,9.37513011,85.974,85.951,3.66596145]
[1773196067440,9.37513011,85.973,85.951,3.66596145]
[1773196067740,9.37513011,85.972,85.951,3.66596145]
[1773196067934,3.78143792,85.984,85.951,3.66596145]
[1773196068131,9.37391386,85.983,85.951,3.66596145]
[1773196068335,9.37391386,85.982,85.951,3.66596145]
[1773196068538,9.37391386,85.981,85.951,3.66596145]
[1773196068740,9.37391386,85.98,85.951,3.66596145]
[1773196068938,3.78143792,85.984,85.951,3.66596145]
[1773196068939,9.37391386,85.979,85.951,3.66596145]
[1773196069139,0.00091386,85.978,85.961,3.66596145]
[1773196069339,3.78143792,85.994,85.961,3.66596145]
[1773196072341,3.78143792,85.994,85.95,7.32713377]
[1773196073141,3.78143792,85.994,85.951,10.47]
[1773196075136,3.78143792,85.994,85.951,14.33391089]
[1773196075340,3.78143792,85.994,85.952,3.86391089]
[1773196078346,3.78143792,85.994,85.954,3.86391089]
[1773196079442,3.78143792,85.994,85.957,3.86391089]
[1773196081248,9.23883411,85.993,85.957,3.86391089]
[1773196081549,9.23883411,85.992,85.957,3.86391089]
[1773196081748,9.23883411,85.991,85.957,3.86391089]
[1773196081948,9.23883411,85.99,85.957,3.86391089]
[1773196082243,9.23883411,85.989,85.957,3.86391089]
[1773196082450,9.23883411,85.988,85.957,3.86391089]
[1773196082648,9.23883411,85.987,85.957,3.86391089]
[1773196082849,9.23883411,85.986,85.957,3.86391089]
[1773196083050,3.67336084,85.993,85.957,3.86391089]
[1773196083349,9.23729414,85.992,85.957,3.86391089]
[1773196083551,9.23729414,85.991,85.957,3.86391089]
[1773196083749,9.23729414,85.99,85.957,3.86391089]
[1773196084046,9.23729414,85.989,85.957,3.86391089]
[1773196084350,9.23729414,85.988,85.957,3.86391089]
[1773196084650,9.23729414,85.987,85.957,3.86391089]
[1773196084845,3.67336084,85.993,85.957,3.86391089]
[1773196085051,9.23633317,85.992,85.957,3.86391089]
[1773196085242,9.23633317,85.991,85.957,3.86391089]
[1773196085442,9.23633317,85.99,85.957,3.86391089]
[1773196085643,9.23635136,85.989,85.957,3.86391089]
[1773196085850,9.23635136,85.988,85.957,3.86391089]
[1773196086050,9.23635136,85.987,85.957,3.86391089]
[1773196086250,3.67336084,85.993,85.957,3.86391089]
[1773196086450,12.9098453,85.992,85.957,3.86391089]
[1773196086651,12.9098453,85.991,85.957,3.86391089]
[1773196086850,9.23648446,85.99,85.957,3.86391089]
[1773196087046,9.23648446,85.989,85.957,3.86391089]
[1773196087246,9.23648446,85.988,85.957,3.86391089]
[1773196087443,9.23648446,85.987,85.957,3.86391089]
[1773196087753,9.23648446,85.986,85.957,3.86391089]
[1773196088050,3.67336084,85.991,85.957,3.86391089]
[1773196088252,12.91050996,85.99,85.957,3.86391089]
[1773196088448,9.23714912,85.989,85.957,3.86391089]
[1773196088652,9.23714912,85.988,85.957,3.86391089]
[1773196088954,9.23714912,85.987,85.957,3.86391089]
[1773196089251,9.23714912,85.986,85.957,3.86391089]
[1773196089450,3.67336084,85.99,85.957,3.86391089]
[1773196089653,9.23758993,85.989,85.957,3.86391089]
[1773196089951,9.23758993,85.988,85.957,3.86391089]
[1773196090149,9.23758993,85.987,85.957,3.86391089]
[1773196090349,9.23758993,85.986,85.957,3.86391089]
[1773196090553,3.67336084,85.99,85.957,3.86391089]
[1773196090753,9.2382019,85.989,85.957,3.86391089]
[1773196091053,9.2382019,85.988,85.957,3.86391089]
[1773196091253,9.2382019,85.987,85.957,3.86391089]
[1773196091453,9.2382019,85.986,85.957,3.86391089]
[1773196091653,3.67336084,85.99,85.957,3.86391089]
[1773196091854,9.23896437,85.989,85.957,3.86391089]
[1773196092153,9.23896437,85.988,85.957,3.86391089]
[1773196092354,9.23896437,85.987,85.957,3.86391089]
[1773196092555,9.23896437,85.986,85.957,3.86391089]
[1773196092755,9.23896437,85.985,85.957,3.86391089]
[1773196092959,3.67336084,85.99,85.957,3.86391089]
[1773196093153,9.23246061,85.989,85.957,3.86391089]
[1773196093354,9.23246061,85.988,85.957,3.86391089]
[1773196093656,9.23246061,85.987,85.957,3.86391089]
[1773196093853,9.23246061,85.986,85.957,3.86391089]
[1773196094050,9.23246061,85.985,85.957,3.86391089]
[1773196094253,3.67336084,85.99,85.957,3.86391089]
[1773196094449,9.23475557,85.989,85.957,3.86391089]
[1773196094655,9.23475557,85.988,85.957,3.86391089]
[1773196094849,9.23475557,85.987,85.957,3.86391089]
[1773196095050,9.23475557,85.986,85.957,3.86391089]
[1773196095252,9.23475557,85.985,85.957,3.86391089]
[1773196095459,9.23475557,85.984,85.957,3.86391089]
[1773196095761,3.67336084,85.989,85.957,3.86391089]
[1773196096058,9.236178,85.988,85.957,3.86391089]
[1773196096360,9.236178,85.987,85.957,3.86391089]
[1773196096559,9.236178,85.986,85.957,3.86391089]
[1773196096762,3.67336084,85.989,85.957,3.86391089]
[1773196096963,9.23782028,85.988,85.957,3.86391089]
[1773196097161,9.23782028,85.987,85.957,3.86391089]
[1773196097462,9.23782028,85.986,85.957,3.86391089]
[1773196097660,9.23782028,85.985,85.957,3.86391089]
[1773196097861,3.67336084,85.989,85.957,3.86391089]
[1773196098061,9.23965855,85.988,85.957,3.86391089]
[1773196098261,9.23965855,85.987,85.957,3.86391089]
[1773196098462,9.23965855,85.986,85.957,3.86391089]
[1773196098664,9.23965855,85.985,85.957,3.86391089]
[1773196098855,9.23965855,85.984,85.957,3.86391089]
[1773196099053,3.67336084,85.989,85.957,3.86391089]
[1773196099257,9.24180628,85.988,85.957,3.86391089]
[1773196099463,9.24180628,85.987,85.957,3.86391089]
[1773196099664,9.24180628,85.986,85.957,3.86391089]
[1773196099865,9.24180628,85.985,85.957,3.86391089]
[1773196100064,9.24180628,85.984,85.957,3.86391089]
[1773196100266,9.24180628,85.983,85.957,3.86391089]
[1773196100461,9.24180628,85.982,85.957,3.86391089]
[1773196100764,3.67336084,85.989,85.957,3.86391089]
[1773196100957,9.24742472,85.988,85.957,3.86391089]
[1773196101163,9.24742472,85.987,85.957,3.86391089]
[1773196101359,0.00042472,85.987,85.971,3.78633608]
[1773196101565,3.80479839,86.014,85.971,3.78633608]
[1773196102357,3.80479839,86.014,85.982,10.466]
[1773196102559,3.80479839,86.014,85.983,3.78633608]
[1773196102764,3.80479839,86.039,85.983,3.78633608]
[1773196102958,3.80479839,86.037,85.983,3.78633608]
[1773196103165,3.80479839,86.035,85.983,3.78633608]
[1773196103367,3.80479839,86.033,85.983,3.78633608]
[1773196103768,3.80479839,86.031,85.983,3.78633608]
[1773196103968,3.80479839,86.029,85.984,10.466]
[1773196104269,3.80479839,86.029,85.983,3.78633608]
[1773196104468,3.80479839,86.019,85.961,3.78633608]
[1773196104766,3.80479839,86.009,85.961,3.78633608]
[1773196113475,3.80479839,86.007,85.961,3.78633608]
[1773196113774,3.80479839,86.005,85.961,3.78633608]
[1773196113974,3.80479839,86.003,85.963,3.78633608]
[1773196114477,9.10994511,86.002,85.963,3.78633608]
[1773196114677,3.80479839,86.012,85.981,3.78633608]
[1773196114876,9.10924809,86.011,85.981,3.78633608]
[1773196115081,9.10924809,86.01,85.981,3.78633608]
[1773196115275,3.80479839,86.012,85.981,3.78633608]
[1773196123089,3.80479839,86.012,85.971,3.74170479]
[1773196124386,3.80479839,86.012,85.973,3.74170479]
[1773196124586,3.80479839,86.012,85.98,3.46105479]
[1773196125789,9.07141738,86.011,85.98,3.46105479]
[1773196125990,9.07141738,86.01,85.98,3.46105479]
[1773196126289,3.80479839,86.012,85.98,3.46105479]
[1773196126490,9.07158384,86.011,85.98,3.46105479]
[1773196126690,9.07158384,86.01,85.98,3.46105479]
[1773196126988,3.80479839,86.012,85.98,3.46105479]
[1773196127183,9.07158384,86.011,85.981,3.74170479]
[1773196127388,9.07158384,86.01,85.981,3.74170479]
[1773196127590,3.80479839,86.012,85.981,3.74170479]
[1773196127789,9.07181327,86.011,85.981,3.74170479]
[1773196128090,9.07181327,86.01,85.981,3.74170479]
[1773196128289,3.80479839,86.012,85.982,10.466]
[1773196128490,3.80479839,86.012,85.982,14.20770479]
[1773196128690,3.80479839,86.012,85.983,3.74170479]
[1773196129191,9.0720369,86.011,85.983,3.74170479]
[1773196129490,3.80479839,86.012,85.983,3.74170479]
[1773196129690,9.0720369,86.011,85.983,3.74170479]
[1773196129889,3.80479839,86.012,85.983,3.74170479]
[1773196130090,9.0720369,86.011,85.983,3.74170479]
[1773196130290,3.80479839,86.012,85.983,3.74170479]
[1773196130590,9.07237671,86.011,85.983,3.74170479]
[1773196130789,3.80479839,86.012,85.983,3.74170479]
[1773196130991,9.07237671,86.011,85.983,3.74170479]
[1773196131192,3.80479839,86.012,85.983,3.74170479]
[1773196131397,9.07279612,86.011,85.983,3.74170479]
[1773196131590,3.80479839,86.012,85.983,3.74170479]
[1773196131791,9.07280551,86.011,85.983,3.74170479]
[1773196131991,3.80479839,86.012,85.983,3.74170479]
[1773196136797,4.00310859,86.026,85.984,4.06137995]
[1773196136998,4.00310859,86.024,85.984,4.06137995]
[1773196137295,4.00310859,86.022,85.984,4.06137995]
[1773196137495,4.00310859,86.017,85.975,4.06137995]
[1773196137795,4.00310859,86.017,85.914,28.78296637]
[1773196137796,4.00310859,86.009,85.95,3.46105479]
[1773196138000,4.00310859,86.007,85.951,4.06137995]
[1773196138298,4.00310859,86.005,85.951,4.06137995]
[1773196138695,4.00310859,86.003,85.951,4.06137995]
[1773196139494,4.00310859,86.003,85.956,14.53037995]
[1773196140200,4.00310859,85.999,85.956,4.06137995]
[1773196140401,4.00310859,85.997,85.956,4.06137995]
[1773196145200,4.00310859,85.995,85.956,4.06137995]
[1773196146402,4.00310859,85.995,85.957,14.53037995]
[1773196146608,4.00310859,85.995,85.958,4.06137995]
[1773196155814,4.00310859,85.995,85.96,3.46071394]
[1773196166026,4.00310859,85.995,85.96,7.35193813]
[1773196169124,4.00310859,85.995,85.96,3.89122419]
[1773196169329,4.00310859,85.995,85.961,3.89122419]
[1773196179242,12.89151872,85.994,85.961,3.89122419]
[1773196179442,3.84903524,85.994,85.961,3.89122419]
[1773196182341,9.0510927,85.993,85.961,3.89122419]
[1773196182541,9.0510927,85.992,85.961,3.89122419]
[1773196182746,3.84903524,85.994,85.961,3.89122419]
[1773196182945,9.04799479,85.993,85.961,3.89122419]
[1773196183145,9.04799479,85.992,85.961,3.89122419]
[1773196183347,3.84903524,85.994,85.961,3.89122419]
[1773196183547,9.04850463,85.993,85.961,3.89122419]
[1773196183746,9.04850463,85.992,85.961,3.89122419]
[1773196183941,3.84903524,85.994,85.961,3.89122419]
[1773196184246,9.04850452,85.993,85.961,3.89122419]
[1773196184446,9.04850452,85.992,85.961,3.89122419]
[1773196184645,3.84903524,85.994,85.961,3.89122419]
[1773196184838,9.04910144,85.993,85.961,3.89122419]
[1773196185038,9.04910144,85.992,85.961,3.89122419]
[1773196185249,3.84903524,85.994,85.964,3.75716629]
[1773196186745,3.84903524,86.006,85.97,3.46071394]
[1773196186948,9.048793,86.005,85.971,3.75716629]
[1773196187148,9.048793,86.004,85.971,3.75716629]
[1773196187448,9.048793,86.003,85.971,3.75716629]
[1773196187651,9.048793,86.002,85.971,3.75716629]
[1773196187852,9.048793,86.001,85.971,3.75716629]
[1773196188152,9.048793,86.0,85.971,3.75716629]
[1773196188345,9.048793,85.999,85.971,3.75716629]
[1773196188547,9.048793,85.998,85.971,3.75716629]
[1773196188747,9.04886027,85.997,85.971,3.75716629]
[1773196188947,3.84903524,86.006,85.971,3.75716629]
[1773196189248,9.0488609,86.005,85.971,3.75716629]
[1773196189445,9.0488609,86.004,85.971,3.75716629]
[1773196189644,9.0488609,86.003,85.971,3.75716629]
[1773196189846,9.0488609,86.002,85.971,3.75716629]
[1773196190151,9.0488609,86.001,85.971,3.75716629]
[1773196190357,9.0488609,86.0,85.971,3.75716629]
[1773196190549,9.0488609,85.999,85.971,3.75716629]
[1773196190750,9.0488609,85.998,85.971,3.75716629]
[1773196190949,3.84903524,86.006,85.971,3.75716629]
[1773196191151,12.73078325,86.005,85.971,3.75716629]
[1773196191352,12.73078325,86.004,85.971,3.75716629]
[1773196191554,9.00913514,86.003,85.971,3.75716629]
[1773196191754,9.00913514,86.002,85.971,3.75716629]
[1773196191948,9.00913514,86.001,85.971,3.75716629]
[1773196192148,9.00913514,86.0,85.971,3.75716629]